[Event "Juniorallsvenskan 2019, Division 1 and 2"]
[Site "Molnlycke kulturhus, Biblioteksgatan 2, Molnlycke, Sweden"]
[Date "2019.11.23"]
[Round "2.6"]
[White "Rasti, Arvin"]
[Black "Bensryd, Hampus"]
[Result "1-0"]
[TimeControl "90 minutes + 30 seconds per move from move one"]
[WhiteFideId "1741160"]
[BlackFideId "1738330"]
[WhiteElo "2206"]
[BlackElo "1977"]

1. Nf3 {[%clk 01:30:57]} {[%emt 00:00:02]} Nf6 {[%clk 01:30:30]} {[%emt
00:00:29]} 2. g3 {[%clk 01:31:11]} {[%emt 00:00:16]} b6 {[%clk 01:30:27]}
{[%emt 00:00:33]} 3. Bg2 {[%clk 01:31:07]} {[%emt 00:00:34]} Bb7 {[%clk
01:30:39]} {[%emt 00:00:17]} 4. O-O {[%clk 01:31:11]} {[%emt 00:00:25]} e6
{[%clk 01:30:09]} {[%emt 00:01:02]} 5. c4 {[%clk 01:30:53]} {[%emt 00:00:48]}
Be7 {[%clk 01:27:49]} {[%emt 00:02:50]} 6. d4 {[%clk 01:29:49]} {[%emt
00:01:34]} O-O {[%clk 01:25:26]} {[%emt 00:02:52]} 7. Nc3 {[%clk 01:30:16]}
{[%emt 00:00:04]} Ne4 {[%clk 01:24:37]} {[%emt 00:01:19]} 8. Qc2 {[%clk
01:29:57]} {[%emt 00:00:48]} Nxc3 {[%clk 01:23:16]} {[%emt 00:01:52]} 9. Qxc3
{[%clk 01:30:17]} {[%emt 00:00:10]} c5 {[%clk 01:20:37]} {[%emt 00:03:09]} 10.
Rd1 {[%clk 01:25:04]} {[%emt 00:05:42]} Bf6 {[%clk 01:15:36]} {[%emt 00:05:31]}
11. Qd3 {[%clk 01:24:11]} {[%emt 00:01:23]} d5 {[%clk 01:02:32]} {[%emt
00:13:34]} 12. cxd5 {[%clk 01:18:39]} {[%emt 00:06:02]} Bxd5 {[%clk 00:59:12]}
{[%emt 00:03:50]} 13. dxc5 {[%clk 01:18:17]} {[%emt 00:00:52]} bxc5 {[%clk
00:57:55]} {[%emt 00:01:47]} 14. Qc2 {[%clk 01:09:22]} {[%emt 00:09:26]} Qb6
{[%clk 00:54:01]} {[%emt 00:04:23]} 15. e4 {[%clk 01:05:50]} {[%emt 00:04:01]}
Bb7 {[%clk 00:51:13]} {[%emt 00:03:19]} 16. Be3 {[%clk 00:54:05]} {[%emt
00:12:15]} Na6 {[%clk 00:49:04]} {[%emt 00:02:39]} 17. e5 {[%clk 00:53:57]}
{[%emt 00:00:38]} Be7 {[%clk 00:47:47]} {[%emt 00:01:47]} 18. Rd7 {[%clk
00:49:55]} {[%emt 00:04:32]} Nb4 {[%clk 00:42:21]} {[%emt 00:05:55]} 19. Qb1
{[%clk 00:49:19]} {[%emt 00:01:06]} Nd5 {[%clk 00:41:28]} {[%emt 00:01:23]} 20.
Bg5 {[%clk 00:48:22]} {[%emt 00:01:27]} Rfe8 {[%clk 00:38:50]} {[%emt
00:03:08]} 21. Bxe7 {[%clk 00:47:54]} {[%emt 00:00:59]} Rxe7 {[%clk 00:39:11]}
{[%emt 00:00:09]} 22. Rd6 {[%clk 00:47:00]} {[%emt 00:01:23]} Qc7 {[%clk
00:36:39]} {[%emt 00:03:01]} 23. Ng5 {[%clk 00:45:17]} {[%emt 00:02:13]} g6
{[%clk 00:35:43]} {[%emt 00:01:26]} 24. Qc1 {[%clk 00:43:20]} {[%emt 00:02:26]}
Rc8 {[%clk 00:29:56]} {[%emt 00:06:17]} 25. Ne4 {[%clk 00:42:37]} {[%emt
00:01:13]} Kg7 {[%clk 00:26:41]} {[%emt 00:03:45]} 26. h4 {[%clk 00:41:21]}
{[%emt 00:01:47]} f6 {[%clk 00:23:43]} {[%emt 00:03:27]} 27. Nxf6 {[%clk
00:34:11]} {[%emt 00:07:40]} Nxf6 {[%clk 00:23:55]} {[%emt 00:00:18]} 28. exf6+
{[%clk 00:34:26]} {[%emt 00:00:13]} Kxf6 {[%clk 00:24:21]} {[%emt 00:00:05]} 29.
Qf4+ {[%clk 00:34:11]} {[%emt 00:00:45]} Kg7 {[%clk 00:24:05]} {[%emt
00:00:47]} 30. Qe5+ {[%clk 00:32:45]} {[%emt 00:01:56]} Kf7 {[%clk 00:24:01]}
{[%emt 00:00:35]} 31. Bh3 {[%clk 00:31:09]} {[%emt 00:02:07]} Rce8 {[%clk
00:22:41]} {[%emt 00:01:49]} 32. h5 {[%clk 00:30:20]} {[%emt 00:01:20]} Bd5
{[%clk 00:21:21]} {[%emt 00:01:50]} 33. b3 {[%clk 00:28:29]} {[%emt 00:02:20]}
Rd8 {[%clk 00:18:59]} {[%emt 00:02:53]} 34. Qf4+ {[%clk 00:28:22]} {[%emt
00:00:37]} Kg8 {[%clk 00:17:57]} {[%emt 00:01:31]} 35. Rxd8+ {[%clk 00:28:12]}
{[%emt 00:00:40]} Qxd8 {[%clk 00:18:23]} {[%emt 00:00:04]} 36. Re1 {[%clk
00:28:11]} {[%emt 00:00:31]} Qf8 {[%clk 00:16:25]} {[%emt 00:02:28]} 37. Qe3
{[%clk 00:27:46]} {[%emt 00:00:56]} gxh5 {[%clk 00:15:49]} {[%emt 00:01:07]} 38.
Qg5+ {[%clk 00:27:11]} {[%emt 00:01:05]} Qg7 {[%clk 00:14:43]} {[%emt
00:01:35]} 39. Qxh5 {[%clk 00:26:47]} {[%emt 00:00:54]} Qg6 {[%clk 00:14:13]}
{[%emt 00:01:00]} 40. Qe5 {[%clk 00:25:20]} {[%emt 00:01:57]} Qg7 {[%clk
00:13:46]} {[%emt 00:00:57]} 41. Qd6 {[%clk 00:24:45]} {[%emt 00:01:05]} Qf6
{[%clk 00:13:00]} {[%emt 00:01:16]} 42. Bg2 {[%clk 00:24:26]} {[%emt 00:00:49]}
Rf7 {[%clk 00:12:38]} {[%emt 00:00:53]} 43. Qxc5 {[%clk 00:24:26]} {[%emt
00:00:30]} Bxg2 {[%clk 00:11:44]} {[%emt 00:01:24]} 44. Kxg2 {[%clk 00:24:49]}
{[%emt 00:00:07]} Qf3+ {[%clk 00:12:05]} {[%emt 00:00:08]} 45. Kg1 {[%clk
00:24:56]} {[%emt 00:00:23]} Rf6 {[%clk 00:12:00]} {[%emt 00:00:37]} 46. Qe3
{[%clk 00:21:11]} {[%emt 00:04:14]} Qd5 {[%clk 00:10:31]} {[%emt 00:01:58]} 47.
Qe4 {[%clk 00:20:05]} {[%emt 00:01:37]} Qc5 {[%clk 00:09:51]} {[%emt 00:01:10]}
48. Re2 {[%clk 00:18:25]} {[%emt 00:02:09]} Qc1+ {[%clk 00:09:51]} {[%emt
00:00:30]} 49. Kg2 {[%clk 00:15:07]} {[%emt 00:03:49]} Rh6 {[%clk 00:09:08]}
{[%emt 00:01:13]} 50. Re1 {[%clk 00:15:17]} {[%emt 00:00:20]} Qc5 {[%clk
00:08:53]} {[%emt 00:00:44]} 51. Qg4+ {[%clk 00:13:35]} {[%emt 00:02:12]} Rg6
{[%clk 00:08:02]} {[%emt 00:01:20]} 52. Qc4 {[%clk 00:13:20]} {[%emt 00:00:45]}
Qb6 {[%clk 00:06:52]} {[%emt 00:01:41]} 53. Re3 {[%clk 00:11:45]} {[%emt
00:02:05]} Rf6 {[%clk 00:05:50]} {[%emt 00:01:31]} 54. b4 {[%clk 00:11:29]}
{[%emt 00:00:46]} Kf7 {[%clk 00:05:23]} {[%emt 00:00:57]} 55. a4 {[%clk
00:11:23]} {[%emt 00:00:37]} a6 {[%clk 00:05:29]} {[%emt 00:00:23]} 56. Qh4
{[%clk 00:10:28]} {[%emt 00:01:25]} h6 {[%clk 00:04:56]} {[%emt 00:01:03]} 57.
Qe4 {[%clk 00:10:08]} {[%emt 00:00:49]} Kg7 {[%clk 00:05:06]} {[%emt 00:00:20]}
58. Qc4 {[%clk 00:09:25]} {[%emt 00:01:12]} Qb7+ {[%clk 00:04:55]} {[%emt
00:00:42]} 59. Kg1 {[%clk 00:09:42]} {[%emt 00:00:13]} Qb6 {[%clk 00:04:53]}
{[%emt 00:00:33]} 60. Re2 {[%clk 00:09:39]} {[%emt 00:00:33]} Qd6 {[%clk
00:04:53]} {[%emt 00:00:29]} 61. b5 {[%clk 00:08:54]} {[%emt 00:01:15]} axb5
{[%clk 00:04:09]} {[%emt 00:01:14]} 62. axb5 {[%clk 00:09:18]} {[%emt
00:00:06]} e5 {[%clk 00:02:58]} {[%emt 00:01:40]} 63. Qe4 {[%clk 00:09:04]}
{[%emt 00:00:43]} Re6 {[%clk 00:02:44]} {[%emt 00:00:44]} 64. Rc2 {[%clk
00:07:39]} {[%emt 00:01:55]} Qd1+ {[%clk 00:02:27]} {[%emt 00:00:47]} 65. Kg2
{[%clk 00:07:52]} {[%emt 00:00:17]} Qd4 {[%clk 00:02:25]} {[%emt 00:00:32]} 66.
Rc7+ {[%clk 00:07:49]} {[%emt 00:00:33]} Kf6 {[%clk 00:02:42]} {[%emt
00:00:13]} 67. Qf3+ {[%clk 00:07:43]} {[%emt 00:00:36]} Kg6 {[%clk 00:02:33]}
{[%emt 00:00:39]} 68. Qf7+ {[%clk 00:07:41]} {[%emt 00:00:32]} Kg5 {[%clk
00:02:59]} {[%emt 00:00:05]} 69. Qxe6 {[%clk 00:07:42]} {[%emt 00:00:28]} Qe4+
{[%clk 00:03:20]} {[%emt 00:00:09]} 70. Kh2 {[%clk 00:08:04]} {[%emt 00:00:08]}
1-0

[Event "Juniorallsvenskan 2019, Division 1 and 2"]
[Site "Molnlycke kulturhus, Biblioteksgatan 2, Molnlycke, Sweden"]
[Date "2019.11.23"]
[Round "2.7"]
[White "Ulles, Jean-Clement"]
[Black "Strom-Engdahl, Alexander"]
[Result "0-1"]
[TimeControl "90 minutes + 30 seconds per move from move one"]
[WhiteFideId "26007029"]
[BlackFideId "1741586"]
[WhiteElo "1943"]
[BlackElo "1940"]

1. e4 {[%clk 01:30:54]} {[%emt 00:00:05]} e5 {[%clk 01:29:56]} {[%emt
00:01:04]} 2. Nf3 {[%clk 01:31:16]} {[%emt 00:00:08]} Nf6 {[%clk 01:30:14]}
{[%emt 00:00:11]} 3. Nxe5 {[%clk 01:31:18]} {[%emt 00:00:29]} d6 {[%clk
01:30:19]} {[%emt 00:00:25]} 4. Nf3 {[%clk 01:31:42]} {[%emt 00:00:05]} Nxe4
{[%clk 01:30:42]} {[%emt 00:00:06]} 5. Nc3 {[%clk 01:31:43]} {[%emt 00:00:30]}
Nxc3 {[%clk 01:30:50]} {[%emt 00:00:22]} 6. dxc3 {[%clk 01:32:06]} {[%emt
00:00:07]} Be7 {[%clk 01:31:13]} {[%emt 00:00:07]} 7. Be3 {[%clk 01:31:56]}
{[%emt 00:00:40]} Nd7 {[%clk 01:29:44]} {[%emt 00:01:59]} 8. Qd2 {[%clk
01:31:31]} {[%emt 00:00:55]} Nf6 {[%clk 01:25:02]} {[%emt 00:05:12]} 9. O-O-O
{[%clk 01:31:16]} {[%emt 00:00:46]} c6 {[%clk 01:20:08]} {[%emt 00:05:23]} 10.
Bd3 {[%clk 01:20:58]} {[%emt 00:10:48]} d5 {[%clk 01:17:52]} {[%emt 00:02:46]}
11. h3 {[%clk 01:04:54]} {[%emt 00:16:35]} O-O {[%clk 01:13:48]} {[%emt
00:04:33]} 12. Rhe1 {[%clk 00:59:45]} {[%emt 00:05:39]} Qa5 {[%clk 01:08:33]}
{[%emt 00:05:45]} 13. Kb1 {[%clk 00:54:35]} {[%emt 00:05:41]} Ne4 {[%clk
01:05:44]} {[%emt 00:03:19]} 14. Qc1 {[%clk 00:43:04]} {[%emt 00:12:02]} Bf5
{[%clk 00:52:34]} {[%emt 00:13:40]} 15. Nd4 {[%clk 00:38:26]} {[%emt 00:05:08]}
Bg6 {[%clk 00:51:10]} {[%emt 00:01:53]} 16. f3 {[%emt 00:09:53]} Nf6 {[%clk
00:42:35]} {[%emt 00:09:02]} 17. Nf5 {[%clk 00:23:32]} {[%emt 00:06:04]} Bxf5
{[%clk 00:38:27]} {[%emt 00:04:39]} 18. Bxf5 {[%clk 00:24:01]} {[%emt
00:00:02]} Rfe8 {[%clk 00:27:13]} {[%emt 00:11:43]} 19. Bd4 {[%clk 00:21:55]}
{[%emt 00:02:36]} Qd8 {[%clk 00:21:59]} {[%emt 00:05:44]} 20. Qg5 {[%clk
00:18:33]} {[%emt 00:03:52]} h6 {[%clk 00:19:56]} {[%emt 00:02:32]} 21. Qf4
{[%clk 00:17:19]} {[%emt 00:01:44]} Bd6 {[%clk 00:16:20]} {[%emt 00:04:06]} 22.
Rxe8+ {[%clk 00:13:21]} {[%emt 00:04:28]} Nxe8 {[%clk 00:16:44]} {[%emt
00:00:06]} 23. Qe3 {[%clk 00:12:17]} {[%emt 00:01:34]} Qc7 {[%clk 00:15:20]}
{[%emt 00:01:54]} 24. Re1 {[%clk 00:09:49]} {[%emt 00:02:58]} c5 {[%clk
00:13:03]} {[%emt 00:02:47]} 25. Be5 {[%clk 00:06:54]} {[%emt 00:03:26]} Bxe5
{[%clk 00:13:00]} {[%emt 00:00:33]} 26. Qxe5 {[%clk 00:07:20]} {[%emt
00:00:04]} Qxe5 {[%clk 00:13:20]} {[%emt 00:00:10]} 27. Rxe5 {[%clk 00:07:46]}
{[%emt 00:00:03]} Nf6 {[%clk 00:13:37]} {[%emt 00:00:12]} 28. Re7 {[%clk
00:06:32]} {[%emt 00:01:44]} Re8 {[%clk 00:13:55]} {[%emt 00:00:12]} 29. Rxe8+
{[%clk 00:06:58]} {[%emt 00:00:04]} Nxe8 {[%clk 00:14:22]} {[%emt 00:00:03]} 30.
Kc1 {[%clk 00:06:41]} {[%emt 00:00:48]} Kf8 {[%clk 00:14:32]} {[%emt 00:00:20]}
31. Kd2 {[%clk 00:05:40]} {[%emt 00:01:31]} Ke7 {[%clk 00:14:34]} {[%emt
00:00:27]} 32. Ke3 {[%clk 00:04:48]} {[%emt 00:01:23]} Kf6 {[%clk 00:11:31]}
{[%emt 00:03:29]} 33. Bd3 {[%clk 00:03:47]} {[%emt 00:01:35]} Nd6 {[%clk
00:11:07]} {[%emt 00:00:55]} 34. Kf4 {[%clk 00:02:44]} {[%emt 00:01:33]} b5
{[%clk 00:08:40]} {[%emt 00:02:57]} 35. b3 {[%clk 00:01:28]} {[%emt 00:01:46]}
c4 {[%clk 00:07:22]} {[%emt 00:01:48]} 36. Be2 {[%clk 00:01:06]} {[%emt
00:00:52]} Nf5 {[%clk 00:07:34]} {[%emt 00:00:17]} 37. Bf1 {[%clk 00:00:37]}
{[%emt 00:00:59]} g5+ {[%clk 00:07:53]} {[%emt 00:00:11]} 38. Kg4 {[%clk
00:00:48]} {[%emt 00:00:19]} Ne3+ {[%clk 00:08:20]} {[%emt 00:00:04]} 0-1

[Event "Juniorallsvenskan 2019, Division 1 and 2"]
[Site "Molnlycke kulturhus, Biblioteksgatan 2, Molnlycke, Sweden"]
[Date "2019.11.23"]
[Round "2.8"]
[White "Lindholm, Gustav"]
[Black "Nord, Alexander"]
[Result "0-1"]
[TimeControl "90 minutes + 30 seconds per move from move one"]
[WhiteFideId "1736515"]
[BlackFideId "1738135"]
[WhiteElo "1922"]
[BlackElo "1845"]

1. d4 {[%clk 01:30:57]} {[%emt 00:00:03]} e6 {[%clk 01:30:54]} {[%emt
00:00:06]} 2. c4 {[%clk 01:31:23]} {[%emt 00:00:04]} Nf6 {[%clk 01:31:21]}
{[%emt 00:00:03]} 3. Nc3 {[%clk 01:31:46]} {[%emt 00:00:07]} Bb4 {[%clk
01:31:48]} {[%emt 00:00:03]} 4. e3 {[%clk 01:32:08]} {[%emt 00:00:09]} O-O
{[%clk 01:32:01]} {[%emt 00:00:16]} 5. Bd3 {[%clk 01:32:29]} {[%emt 00:00:10]}
c5 {[%clk 01:31:26]} {[%emt 00:01:04]} 6. Nf3 {[%clk 01:32:51]} {[%emt
00:00:09]} Nc6 {[%clk 01:31:21]} {[%emt 00:00:35]} 7. O-O {[%clk 01:32:06]}
{[%emt 00:01:16]} Bxc3 {[%clk 01:31:46]} {[%emt 00:00:04]} 8. bxc3 {[%clk
01:32:29]} {[%emt 00:00:07]} d6 {[%clk 01:32:10]} {[%emt 00:00:06]} 9. Re1
{[%clk 01:29:06]} {[%emt 00:03:53]} e5 {[%clk 01:30:28]} {[%emt 00:02:11]} 10.
Qc2 {[%clk 01:23:55]} {[%emt 00:05:41]} Bd7 {[%clk 01:24:54]} {[%emt 00:06:05]}
11. Bb2 {[%clk 01:20:05]} {[%emt 00:04:20]} Qc7 {[%clk 01:12:52]} {[%emt
00:12:30]} 12. Rad1 {[%clk 01:16:38]} {[%emt 00:03:58]} Rae8 {[%clk 01:03:25]}
{[%emt 00:09:58]} 13. Nd2 {[%clk 01:11:27]} {[%emt 00:05:40]} h6 {[%clk
01:00:44]} {[%emt 00:03:12]} 14. f3 {[%clk 01:00:19]} {[%emt 00:11:38]} Ne7
{[%clk 00:57:56]} {[%emt 00:03:17]} 15. Nf1 {[%clk 00:39:24]} {[%emt 00:21:25]}
Kh8 {[%clk 00:51:23]} {[%emt 00:07:03]} 16. Ng3 {[%clk 00:30:20]} {[%emt
00:09:35]} Qc8 {[%clk 00:50:30]} {[%emt 00:01:21]} 17. Ba1 {[%clk 00:25:11]}
{[%emt 00:05:42]} Nfg8 {[%clk 00:47:18]} {[%emt 00:03:41]} 18. Ne4 {[%clk
00:25:23]} {[%emt 00:00:18]} Qc7 {[%clk 00:45:51]} {[%emt 00:01:57]} 19. dxc5
{[%clk 00:25:28]} {[%emt 00:00:26]} dxc5 {[%clk 00:46:08]} {[%emt 00:00:12]} 20.
Bf1 {[%clk 00:25:45]} {[%emt 00:00:13]} Rd8 {[%clk 00:34:53]} {[%emt 00:11:45]}
21. Nd6 {[%clk 00:23:56]} {[%emt 00:02:19]} Be6 {[%clk 00:33:35]} {[%emt
00:01:49]} 22. Nb5 {[%clk 00:23:19]} {[%emt 00:01:07]} Qb8 {[%clk 00:33:08]}
{[%emt 00:00:56]} 23. Na3 {[%clk 00:20:12]} {[%emt 00:03:38]} Nc6 {[%clk
00:32:05]} {[%emt 00:01:33]} 24. Bb2 {[%clk 00:15:18]} {[%emt 00:05:24]} Nf6
{[%clk 00:29:49]} {[%emt 00:02:46]} 25. Bd3 {[%clk 00:14:14]} {[%emt 00:01:34]}
Rd7 {[%clk 00:26:59]} {[%emt 00:03:19]} 26. Be4 {[%clk 00:12:40]} {[%emt
00:02:04]} Nxe4 {[%clk 00:24:05]} {[%emt 00:03:25]} 27. Rxd7 {[%clk 00:12:38]}
{[%emt 00:00:33]} Bxd7 {[%clk 00:24:25]} {[%emt 00:00:09]} 28. Qxe4 {[%clk
00:11:00]} {[%emt 00:02:08]} Be6 {[%clk 00:23:39]} {[%emt 00:01:15]} 29. Rd1
{[%clk 00:09:31]} {[%emt 00:02:00]} Rd8 {[%clk 00:23:46]} {[%emt 00:00:24]} 30.
Qc2 {[%clk 00:08:59]} {[%emt 00:01:02]} Na5 {[%clk 00:21:33]} {[%emt 00:02:43]}
31. Rxd8+ {[%clk 00:07:50]} {[%emt 00:01:40]} Qxd8 {[%clk 00:22:00]} {[%emt
00:00:03]} 32. h3 {[%clk 00:04:51]} {[%emt 00:03:29]} Nxc4 {[%clk 00:08:34]}
{[%emt 00:13:56]} 33. Nxc4 {[%clk 00:04:54]} {[%emt 00:00:27]} Bxc4 {[%clk
00:09:02]} {[%emt 00:00:01]} 34. Qe4 {[%clk 00:03:23]} {[%emt 00:02:01]} Bxa2
{[%clk 00:06:39]} {[%emt 00:02:53]} 35. Qxe5 {[%clk 00:02:02]} {[%emt
00:01:51]} b6 {[%clk 00:04:41]} {[%emt 00:02:28]} 36. c4 {[%clk 00:02:00]}
{[%emt 00:00:32]} f6 {[%clk 00:05:10]} 37. Qe6 {[%emt 00:02:36]} Qd1+ {[%clk
00:02:13]} {[%emt 00:01:00]} 38. Kh2 {[%clk 00:02:47]} {[%emt 00:00:03]} Qd8
{[%clk 00:02:34]} {[%emt 00:00:08]} 39. e4 {[%clk 00:02:15]} {[%emt 00:01:04]}
Qg8 {[%clk 00:02:58]} {[%emt 00:00:05]} 40. Qe7 {[%clk 00:01:57]} {[%emt
00:00:46]} Bxc4 {[%clk 00:03:01]} {[%emt 00:00:29]} 41. Qxa7 {[%clk 00:01:38]}
{[%emt 00:00:49]} Qe6 {[%clk 00:03:22]} {[%emt 00:00:08]} 42. e5 {[%clk
00:01:10]} {[%emt 00:00:59]} f5 {[%clk 00:03:26]} {[%emt 00:00:26]} 43. g4
{[%clk 00:00:45]} {[%emt 00:00:55]} f4 {[%clk 00:01:07]} {[%emt 00:02:49]} 44.
Qa8+ {[%clk 00:00:55]} {[%emt 00:00:18]} Qg8 {[%clk 00:01:24]} {[%emt
00:00:13]} 45. Qe4 {[%clk 00:00:40]} {[%emt 00:00:46]} Be6 {[%clk 00:01:22]}
{[%emt 00:00:32]} 46. Qxf4 {[%clk 00:00:47]} {[%emt 00:00:24]} b5 {[%clk
00:01:20]} {[%emt 00:00:32]} 47. Qe3 {[%clk 00:01:12]} {[%emt 00:00:06]} Qd8
{[%clk 00:01:08]} {[%emt 00:00:42]} 48. f4 {[%clk 00:01:18]} {[%emt 00:00:25]}
Qd1 {[%clk 00:01:17]} {[%emt 00:00:19]} 49. Qf2 {[%clk 00:01:17]} {[%emt
00:00:32]} c4 {[%clk 00:00:49]} {[%emt 00:00:58]} 50. f5 {[%clk 00:01:45]}
{[%emt 00:00:02]} Bd5 {[%clk 00:00:41]} {[%emt 00:00:37]} 51. f6 {[%clk
00:01:34]} {[%emt 00:00:41]} Qh1+ {[%clk 00:00:32]} {[%emt 00:00:40]} 52. Kg3
{[%clk 00:02:03]} {[%emt 00:00:01]} Qe4 {[%emt 00:00:19]} 53. fxg7+ {[%clk
00:00:54]} {[%emt 00:01:38]} Kh7 {[%clk 00:01:13]} 54. Qf5+ {[%clk 00:00:37]}
{[%emt 00:00:47]} Qxf5 {[%clk 00:01:37]} {[%emt 00:00:06]} 55. gxf5 {[%clk
00:01:01]} {[%emt 00:00:06]} b4 {[%clk 00:01:47]} {[%emt 00:00:20]} 56. Kf2
{[%clk 00:00:42]} {[%emt 00:00:49]} c3 {[%clk 00:02:06]} {[%emt 00:00:11]} 57.
Bxc3 {[%clk 00:00:51]} {[%emt 00:00:22]} bxc3 {[%emt 00:00:24]} 58. Ke3 {[%clk
00:00:56]} {[%emt 00:00:01]} Kxg7 {[%clk 00:02:51]} {[%emt 00:00:14]} 59. f6+
{[%clk 00:00:34]} {[%emt 00:00:53]} Kf7 {[%clk 00:03:14]} {[%emt 00:00:08]} 60.
Kd3 {[%clk 00:01:00]} {[%emt 00:00:05]} Ke6 {[%clk 00:03:26]} {[%emt 00:00:17]}
61. f7 {[%clk 00:01:21]} {[%emt 00:00:10]} Kxf7 {[%clk 00:03:52]} {[%emt
00:00:03]} 62. Kxc3 {[%clk 00:01:38]} {[%emt 00:00:13]} Ke6 {[%clk 00:04:00]}
{[%emt 00:00:22]} 63. Kd4 {[%clk 00:02:03]} {[%emt 00:00:06]} Bh1 {[%clk
00:03:50]} {[%emt 00:00:39]} 64. Ke3 {[%clk 00:02:23]} {[%emt 00:00:10]} Kxe5
{[%clk 00:04:19]} {[%emt 00:00:02]} 65. Kf2 {[%clk 00:02:48]} {[%emt 00:00:04]}
Kf4 {[%clk 00:04:39]} {[%emt 00:00:09]} 66. Kg1 {[%clk 00:03:16]} {[%emt
00:00:03]} Bc6 {[%clk 00:05:03]} {[%emt 00:00:06]} 67. Kh2 {[%clk 00:03:40]}
{[%emt 00:00:06]} h5 {[%clk 00:05:28]} {[%emt 00:00:05]} 68. Kg1 {[%clk
00:04:09]} Kg3 {[%clk 00:05:52]} {[%emt 00:00:06]} 69. Kf1 {[%clk 00:04:31]}
{[%emt 00:00:09]} Kxh3 {[%clk 00:06:17]} {[%emt 00:00:05]} 70. Kg1 {[%clk
00:04:58]} {[%emt 00:00:03]} Kg3 {[%clk 00:06:42]} {[%emt 00:00:05]} 0-1